bitfinex/quotes_ETHUSD_20250415
["timestamp","ask_amount","ask_price","bid_price","bid_amount"]
[1744718444608,6.13205,1630.8,1630.5,6.13296]
[1744718444787,6.13205,1630.8,1630.5,12.26593]
[1744718445106,12.26422,1630.8,1630.4,6.90905]
[1744718445408,6.13205,1630.8,1630.5,6.13304]
[1744718446609,6.13308,1630.5,1630.2,6.93191]
[1744718446812,6.13308,1630.5,1630.2,13.06602]
[1744718447316,13.06364,1630.6,1630.3,6.13379]
[1744718448313,6.93075,1630.6,1630.3,6.13379]
[1744718448503,6.93075,1630.6,1630.3,12.26752]
[1744718448675,0.8046,1630.8,1630.3,1.306532]
[1744718448871,0.8046,1630.8,1630.5,6.133]
[1744718449076,6.93667,1630.8,1630.5,6.13306]
[1744718449506,6.93667,1630.8,1630.5,6.13298]
[1744718449701,6.93667,1630.8,1630.5,12.26593]
[1744718449903,6.93667,1630.8,1630.5,6.13295]
[1744718450410,13.06877,1630.8,1630.5,6.13295]
[1744718452003,6.93667,1630.8,1630.5,6.13295]
[1744718452328,6.93667,1630.8,1630.4,6.13338]
[1744718452624,6.13244,1630.7,1630.4,12.2667]
[1744718453330,6.13244,1630.7,1630.4,6.13335]
[1744718453824,12.26494,1630.7,1630.4,6.13335]
[1744718454132,6.93802,1630.5,1630.2,9.93189]
[1744718454561,0.8049,1630.5,1630.3,6.13373]
[1744718455058,6.13243,1630.7,1630.3,6.13384]
[1744718455230,0.71354611,1630.7,1630.5,6.13308]
[1744718455396,0.7509,1630.7,1630.5,12.26616]
[1744718455591,0.7509,1630.7,1630.5,6.13308]
[1744718455835,1.00303113,1630.8,1630.5,12.26616]
[1744718456046,7.13510113,1630.8,1630.4,13.0282]
[1744718456192,6.13239,1630.7,1630.4,13.0282]
[1744718456402,6.13239,1630.7,1630.4,14.33102]
[1744718456931,6.13207,1630.8,1630.5,6.13306]
[1744718457121,12.24858,1630.9,1630.4,2.06432]
[1744718457320,6.13208,1630.8,1630.5,6.13298]
[1744718458238,12.2643,1630.8,1630.5,6.13298]
[1744718459337,6.13208,1630.8,1630.5,6.13298]
[1744718459643,6.1169,1630.9,1630.5,6.9527]
[1744718459808,6.132,1630.8,1630.5,13.08567]
[1744718460011,6.132,1630.8,1630.5,13.08568]
[1744718460227,6.132,1630.8,1630.5,13.08567]
[1744718460548,6.132,1630.8,1630.5,0.81973]
[1744718460836,12.26417,1630.8,1630.5,0.81973]
[1744718461343,6.13254,1630.7,1630.5,0.81973]
[1744718461897,0.8321,1630.5,1630.2,6.13419]
[1744718462100,0.8321,1630.5,1630.1,6.8875]
[1744718462101,0.8321,1630.5,1630.3,6.13381]
[1744718462436,0.8224,1630.7,1630.5,6.13308]
[1744718462617,0.8224,1630.7,1630.5,6.13297]
[1744718462816,0.8224,1630.7,1630.5,12.26593]
[1744718463018,17.62935,1630.9,1630.6,6.13271]
[1744718463216,13.08654,1630.8,1630.5,6.13296]
[1744718463410,12.32007,1630.9,1630.6,6.13257]
[1744718464445,18.4518,1630.9,1630.6,6.13257]
[1744718465039,6.13199,1630.8,1630.5,12.26598]
[1744718465248,12.26414,1630.8,1630.5,6.13299]
[1744718465547,12.32009,1630.9,1630.6,6.13271]
[1744718466047,6.13201,1630.8,1630.5,6.13298]
[1744718466249,6.13201,1630.8,1630.5,7.441473]
[1744718466550,6.13201,1630.8,1630.5,13.574453]
[1744718468271,6.13234,1630.7,1630.5,1.308493]
[1744718468429,12.26419,1630.8,1630.5,1.308493]
[1744718468624,12.26419,1630.8,1630.5,7.441553]
[1744718469063,6.1324,1630.7,1630.5,1.308493]
[1744718469865,6.1324,1630.7,1630.4,13.08524]
[1744718470159,6.13201,1630.8,1630.5,6.13272]
[1744718470560,6.132,1630.8,1630.5,6.13296]
[1744718470772,12.26411,1630.8,1630.5,6.13296]
[1744718471469,6.132,1630.8,1630.5,6.13296]
[1744718471972,12.26413,1630.8,1630.5,6.13296]
[1744718472173,12.26484,1630.7,1630.4,6.95193]
[1744718472368,6.13234,1630.7,1630.4,14.39383]
[1744718472571,6.1884,1630.9,1630.3,6.13369]
[1744718472572,6.94127,1630.6,1630.3,6.13369]
[1744718472756,13.07432,1630.6,1630.3,6.13369]
[1744718473074,6.94127,1630.6,1630.3,6.13369]
[1744718473275,13.07415,1630.6,1630.3,6.13369]
[1744718473482,13.07415,1630.6,1630.3,7.360471]
[1744718473769,6.94127,1630.6,1630.3,7.360471]
[1744718474161,6.94127,1630.6,1630.3,6.13369]
[1744718474567,13.07415,1630.6,1630.3,6.13369]
[1744718475257,6.94127,1630.6,1630.3,12.2674]
[1744718475783,0.8085,1630.6,1630.4,6.13345]
[1744718475994,6.94122,1630.6,1630.3,12.26766]
[1744718476138,6.13272,1630.6,1630.3,14.260526]
[1744718477080,12.26561,1630.6,1630.3,8.126696]
[1744718477282,6.13272,1630.6,1630.3,14.260436]
[1744718477436,17.62989,1630.7,1630.4,6.13335]
[1744718477641,6.13273,1630.6,1630.3,13.03358]
[1744718478389,5.365,1630.7,1630.5,6.13302]
[1744718479183,5.365,1630.7,1630.6,6.13271]
[1744718479557,5.365,1630.7,1630.4,6.13337]
[1744718479758,5.365,1630.7,1630.4,6.826737]
[1744718480486,12.26846,1630.7,1630.4,6.826737]
[1744718480684,6.1328,1630.6,1630.3,6.93402]
[1744718480988,12.26566,1630.6,1630.3,6.93402]
[1744718481481,6.1328,1630.6,1630.3,13.06775]
[1744718482083,12.26856,1630.7,1630.4,6.13346]
[1744718482248,6.1361,1630.7,1630.5,6.1329]
[1744718482449,12.26846,1630.7,1630.4,6.13333]
[1744718482759,18.40107,1630.7,1630.4,6.13333]
[1744718483583,12.26846,1630.7,1630.4,12.26669]
[1744718483959,6.1361,1630.7,1630.6,6.13271]
[1744718484280,5.365,1630.7,1630.4,7.440079]
[1744718484479,11.49747,1630.7,1630.4,7.440079]
[1744718484686,17.62999,1630.7,1630.4,7.440079]
[1744718484867,11.49747,1630.7,1630.4,13.573459]
[1744718485077,5.365,1630.7,1630.5,6.13304]
[1744718485252,5.365,1630.7,1630.5,6.13298]
[1744718485667,11.49755,1630.7,1630.4,7.440079]
[1744718486190,17.63012,1630.7,1630.4,7.440079]
[1744718486484,11.49755,1630.7,1630.4,12.26672]
[1744718486785,5.365,1630.7,1630.6,6.13271]
[1744718487545,6.1657,1631.1,1630.9,6.13133]
[1744718487846,58.09115293,1631.3,1631.1,6.1308]
[1744718488049,9.46245293,1631.3,1631.2,6.13045]
[1744718488488,4.09745293,1631.3,1631.2,6.13045]
[1744718488794,4.09745293,1631.3,1631.2,11.94528534]
[1744718490309,4.09745293,1631.3,1631.2,8.188785]
[1744718490603,4.09745293,1631.3,1631.0,6.90056]
[1744718490807,4.09745293,1631.3,1631.0,6.90046]
[1744718491116,4.09745293,1631.3,1631.2,6.13045]
[1744718491906,18.38967,1631.6,1631.2,6.13035]
[1744718492067,6.12947,1631.5,1631.2,6.13035]
[1744718492511,12.25908,1631.5,1631.2,6.13035]
[1744718492673,12.25908,1631.5,1631.1,6.13068]
[1744718493179,12.25908,1631.5,1631.1,12.2614]
[1744718493513,12.25908,1631.5,1631.1,13.94013003]
[1744718493668,6.1299,1631.4,1631.1,12.2614]
[1744718494610,12.2605,1631.6,1631.2,12.26074]
[1744718494927,6.1314,1631.6,1631.3,6.13002]
[1744718495074,12.26047,1631.6,1631.3,6.13002]
[1744718495276,18.38968,1631.6,1631.3,6.13002]
[1744718496207,18.38968,1631.6,1631.2,6.13026]
[1744718496720,18.38968,1631.6,1631.2,12.26052]
[1744718497092,12.26047,1631.6,1631.3,6.13002]
[1744718497273,6.1314,1631.6,1631.3,13.07316]
[1744718497469,5.365,1631.6,1631.4,6.12968]
[1744718497690,11.49401,1631.6,1631.3,6.94314]
[1744718498088,5.365,1631.6,1631.2,6.13039]
[1744718498284,6.12954,1631.5,1631.2,6.13039]
[1744718499306,6.12954,1631.5,1631.2,12.26072]
[1744718499612,18.2379,1631.6,1631.2,12.26072]
[1744718499816,5.365,1631.6,1631.3,6.12998]
[1744718500016,5.365,1631.6,1631.4,6.12956]
[1744718500583,11.49398,1631.6,1631.3,12.26001]
[1744718500898,5.365,1631.6,1631.4,6.90369]
[1744718501101,11.49397,1631.6,1631.4,0.774]
[1744718501402,11.49397,1631.6,1631.3,7.355961]
[1744718501914,11.49397,1631.6,1631.3,13.485931]
[1744718504019,11.49397,1631.6,1631.4,6.12945]
[1744718504020,5.365,1631.6,1631.4,6.12945]
[1744718504319,5.365,1631.6,1631.4,12.25903]
[1744718504619,5.365,1631.6,1631.5,6.12932]
[1744718504916,18.44534,1631.9,1631.6,6.12872]
[1744718505214,6.12871,1631.7,1631.4,6.12966]
[1744718505530,6.95813,1631.6,1631.2,13.07066]
[1744718505683,6.12936,1631.5,1631.2,13.07066]
[1744718505885,6.12936,1631.5,1631.2,14.677726]
[1744718506226,6.95813,1631.6,1631.3,12.26003]
[1744718506409,6.95813,1631.6,1631.3,12.25992]
[1744718506718,13.0873,1631.6,1631.3,6.12996]
[1744718507419,6.95813,1631.6,1631.3,6.12996]
[1744718507614,6.12933,1631.5,1631.2,2.416966]
[1744718507823,6.95813,1631.6,1631.3,12.25994]
[1744718508121,6.95813,1631.6,1631.3,6.12991]
[1744718508919,13.08723,1631.6,1631.3,6.12991]
[1744718509222,13.08726,1631.6,1631.3,6.12991]
[1744718509521,6.95813,1631.6,1631.3,6.12991]
[1744718510020,0.8291,1631.6,1631.4,6.12963]
[1744718510626,0.8291,1631.6,1631.4,6.1296]
[1744718511121,6.95806,1631.6,1631.3,12.2599]
[1744718511321,11.48867,1631.7,1631.4,12.25927]
[1744718512026,5.36,1631.7,1631.6,6.12895]
[1744718512593,5.36,1631.7,1631.5,6.89214]
[1744718512926,11.48859,1631.7,1631.3,8.22602]
[1744718513228,5.36,1631.7,1631.3,0.7891]
[1744718513385,5.36,1631.7,1631.6,6.12895]
[1744718513587,5.36,1631.7,1631.5,6.12914]
[1744718514019,11.48862,1631.7,1631.4,12.25926]
[1744718514187,11.48862,1631.7,1631.4,6.12959]
[1744718514402,5.36,1631.7,1631.4,7.434458]
[1744718514599,17.61741,1631.7,1631.4,7.434458]
[1744718515103,17.61741,1631.7,1631.4,6.12959]
[1744718516303,11.48858,1631.7,1631.4,12.25918]
[1744718516701,5.36,1631.7,1631.5,6.12928]
[1744718516908,5.36,1631.7,1631.5,6.12923]
[1744718517492,5.36,1631.7,1631.5,12.25845]
[1744718517695,5.36,1631.7,1631.5,6.12922]
[1744718518406,5.36,1631.7,1631.5,12.25844]
[1744718520302,5.36,1631.7,1631.6,6.12895]
[1744718520941,0.7665,1632.1,1631.8,6.1282]
[1744718521101,6.89333,1632.2,1631.9,6.12768]
[1744718521297,0.31996164,1632.3,1632.1,6.12693]
[1744718521526,6.12562,1632.5,1632.1,6.12693]
[1744718521731,1.841669,1632.5,1632.1,6.12687]
[1744718521931,1.841669,1632.5,1632.3,6.12632]
[1744718521932,0.8068,1632.4,1632.3,6.12632]
[1744718522097,0.8068,1632.4,1632.2,6.12659]
[1744718522539,6.91735,1632.7,1632.3,6.1261]
[1744718522702,5.359,1632.6,1632.5,6.12557]
[1744718522900,12.28426,1632.9,1632.5,6.738127]
[1744718523097,12.28446,1632.9,1632.5,6.737987]
[1744718523298,12.28446,1632.9,1632.5,12.863417]
[1744718523497,18.40869,1632.9,1632.5,12.863417]
[1744718523738,12.28433,1632.9,1632.5,12.863417]
[1744718524243,6.1245,1632.8,1632.5,6.737987]
[1744718524627,12.28433,1632.9,1632.5,6.737987]
[1744718524807,6.12456,1632.8,1632.5,6.737987]
[1744718525133,6.12456,1632.8,1632.5,6.738097]
[1744718525336,12.28419,1632.9,1632.6,0.6738097]
[1744718525545,6.1601,1632.9,1632.6,6.7989297]
[1744718525947,12.28429,1632.9,1632.6,6.7989297]
[1744718526297,5.359,1632.9,1632.8,6.12444]
[1744718526754,5.358,1633.2,1632.7,6.91025]
[1744718526923,5.358,1633.2,1633.0,6.12356]
[1744718527618,11.48114,1633.2,1632.9,0.7856]
[1744718528239,17.6043,1633.2,1632.8,16.750385]
[1744718528417,17.60427,1633.2,1632.8,16.750385]
[1744718528612,0.7917,1633.0,1632.8,0.691025]
[1744718528819,6.91563,1633.0,1632.6,7.6094397]
[1744718529033,6.12407,1632.9,1632.6,7.6094397]
[1744718529226,6.12407,1632.9,1632.6,0.6738097]
[1744718529523,6.12457,1632.8,1632.6,0.6738097]
[1744718529923,12.24919,1632.8,1632.6,0.6738097]
[1744718530255,12.24917,1632.8,1632.5,12.797997]
[1744718530479,6.12457,1632.8,1632.5,12.797997]
[1744718530761,6.12457,1632.8,1632.5,12.18544]
[1744718530924,6.12482,1632.8,1632.5,6.06]
[1744718531257,12.24964,1632.8,1632.5,6.06]
[1744718531581,6.12519,1632.6,1632.5,6.06]
[1744718531740,0.7603,1632.7,1632.2,6.91871]
[1744718531916,6.12608,1632.4,1632.0,6.9194]
[1744718532117,0.8106,1632.4,1632.0,6.91953]
[1744718532317,6.12735,1632.1,1631.8,6.8163]
[1744718532571,6.12735,1632.1,1631.7,6.12848]
[1744718532572,6.12748,1632.0,1631.6,6.1288]
[1744718532928,6.12748,1632.0,1631.7,6.12855]
[1744718533161,6.12821,1631.8,1631.5,6.88557]
[1744718533385,6.12782,1631.9,1631.5,14.07892703]
[1744718533538,6.12782,1631.9,1631.6,6.12893]
[1744718533718,6.12782,1631.9,1631.6,12.25775]
[1744718534073,17.60913,1632.0,1631.6,12.25775]
[1744718534280,6.1284,1631.8,1631.5,7.94971703]
[1744718535979,12.2559,1631.9,1631.5,14.07887703]
[1744718536175,6.12789,1631.9,1631.5,7.94971703]
[1744718536384,17.60923,1632.0,1631.6,6.12894]
[1744718536587,19.451213,1632.0,1631.6,12.25773]
[1744718536763,6.12786,1631.9,1631.5,7.94976703]
[1744718537073,6.12821,1631.8,1631.5,7.94976703]
[1744718537291,5.354,1632.0,1631.5,1.8817954]
[1744718537472,0.7885,1632.3,1632.0,6.1273]
[1744718537645,11.4812,1632.4,1632.1,6.12686]
[1744718537836,11.4812,1632.4,1632.0,6.1273]
[1744718537837,17.60744,1632.4,1632.0,6.1273]
[1744718538239,17.60744,1632.4,1631.8,3.75650034]
[1744718538240,5.355,1632.4,1632.2,6.12667]
[1744718538683,5.355,1632.4,1632.1,6.94015]
[1744718538883,11.481,1632.4,1632.1,6.94015]
[1744718539069,11.481,1632.4,1632.1,13.06711]
[1744718539264,11.481,1632.4,1632.1,6.94012]
[1744718539642,5.355,1632.4,1632.1,6.94012]
[1744718539846,5.355,1632.4,1632.3,6.12632]
[1744718540381,6.12524,1632.6,1632.2,6.12663]
[1744718540587,18.41474,1632.7,1632.3,6.12606]
[1744718540878,18.41474,1632.7,1632.3,12.25212]
[1744718541047,12.28975,1632.7,1632.3,12.25212]
[1744718541449,6.12533,1632.6,1632.3,6.12606]
[1744718542171,6.12533,1632.6,1632.3,12.25223]
[1744718542587,18.41479,1632.7,1632.3,12.25223]
[1744718542802,12.28981,1632.7,1632.4,6.12581]
[1744718543024,18.41482,1632.7,1632.3,12.25223]
[1744718543209,12.25063,1632.6,1632.3,7.351283]
[1744718544182,6.12521,1632.6,1632.3,7.351283]
[1744718545120,18.41481,1632.7,1632.4,6.12589]
[1744718545486,18.41481,1632.7,1632.3,13.477843]
[1744718545687,6.12519,1632.6,1632.3,13.477843]
[1744718545888,6.12519,1632.6,1632.4,1.3477843]
[1744718546209,6.12519,1632.6,1632.3,6.12622]
[1744718546414,6.12519,1632.6,1632.3,12.25241]
[1744718546908,6.1649,1632.7,1632.4,6.12585]
[1744718547107,5.355,1632.7,1632.5,6.12544]
[1744718547714,5.355,1632.7,1632.5,12.2509]
[1744718547911,5.355,1632.7,1632.6,7.35028]
[1744718548114,5.355,1632.7,1632.6,1.22509]
[1744718548779,11.47982,1632.7,1632.4,13.01406]
[1744718549110,11.4799,1632.7,1632.3,12.25248]
[1744718549330,6.12541,1632.6,1632.3,6.12623]
[1744718549615,17.60486,1632.7,1632.4,6.1259]
[1744718550820,5.355,1632.7,1632.3,0.06125637]
[1744718551025,11.47994,1632.7,1632.4,6.12584]
[1744718551195,17.6049,1632.7,1632.4,6.12582]
[1744718551391,11.47994,1632.7,1632.4,6.12582]
[1744718551601,17.60507,1632.7,1632.3,6.82264964]
[1744718551926,10.65288034,1632.6,1632.0,0.8208]
[1744718552082,6.12685,1632.2,1631.9,6.12778]
[1744718552408,12.25392,1632.2,1631.9,6.12775]
[1744718552949,6.12715,1632.1,1631.9,3.0]
[1744718553082,5.354,1632.3,1631.7,12.18851]
[1744718553083,0.7731,1632.0,1631.7,6.06]
[1744718553281,0.7731,1632.0,1631.4,3.75650034]
[1744718553282,6.12809,1631.9,1631.5,6.12922]
[1744718553587,13.02817,1632.0,1631.6,6.741822]
[1744718553793,13.02817,1632.0,1631.6,12.870652]
[1744718554422,6.90057,1632.0,1631.7,6.12853]
[1744718554584,0.7731,1632.0,1631.8,6.12807]
[1744718554905,0.7981,1632.2,1631.9,6.12768]
[1744718555117,6.92481,1632.2,1631.8,7.35373]
[1744718555424,12.25457,1632.1,1631.8,1.22566]
[1744718555588,6.12718,1632.1,1631.8,7.35382]
[1744718556515,13.05167,1632.2,1631.8,13.54317586]
[1744718556821,6.92481,1632.2,1631.9,6.12782]
[1744718557182,11.48034,1632.3,1631.9,12.25552]
[1744718557383,18.831044,1632.3,1631.9,12.25552]
[1744718557783,12.704454,1632.3,1632.0,6.12722]
[1744718558028,18.830974,1632.3,1632.0,6.12722]
[1744718558195,18.830984,1632.3,1632.0,6.12722]
[1744718558398,6.12672,1632.2,1631.9,6.12773]
[1744718558599,6.12672,1632.2,1631.9,12.25543]
[1744718558921,6.12672,1632.2,1631.9,6.1277]
[1744718559722,6.12672,1632.2,1631.8,7.35372]
[1744718559900,6.12716,1632.1,1631.8,6.12806]
[1744718561024,6.12757,1632.0,1631.7,13.04857]
[1744718561193,6.92807,1632.1,1631.8,12.25625]
[1744718561526,1.8831174,1632.2,1631.8,6.12807]
[1744718561699,12.25399,1632.2,1631.8,6.12807]
[1744718562024,6.12722,1632.1,1631.8,6.12807]
[1744718562537,6.155,1632.3,1631.7,4.54810034]
[1744718562692,0.7693,1632.5,1632.3,6.12597]
[1744718562895,6.89487,1632.5,1632.2,6.12645]
[1744718563094,6.89487,1632.5,1632.2,12.25295]
[1744718563889,6.89487,1632.5,1632.2,6.12645]
[1744718564641,6.12601,1632.4,1632.1,12.25393]
[1744718565038,12.25302,1632.3,1632.0,6.12732]
[1744718565397,6.12642,1632.3,1632.0,6.12732]
[1744718565743,6.89651,1632.2,1631.9,6.12777]
[1744718565943,13.02342,1632.2,1631.9,6.12777]
[1744718566239,13.02342,1632.2,1631.8,13.03988]
[1744718566813,12.25444,1632.1,1631.8,6.91179]
[1744718567013,6.12722,1632.1,1631.8,6.91179]
[1744718567217,6.12721,1632.1,1631.8,6.91179]
[1744718567423,6.12721,1632.1,1631.8,6.91176]
[1744718567623,6.12721,1632.1,1631.8,13.03985]
[1744718567808,6.12721,1632.1,1631.8,13.03983]
[1744718568342,14.325592,1632.2,1631.9,6.12773]
[1744718568941,8.198722,1632.2,1631.9,6.12773]
[1744718569147,8.198722,1632.2,1631.9,12.25545]
[1744718569352,6.12641,1632.3,1632.0,12.2546]
[1744718569649,6.12644,1632.3,1632.0,6.1273]
[1744718569950,12.25293,1632.3,1632.0,6.1273]
[1744718570851,6.12644,1632.3,1632.0,12.25461]
[1744718571023,8.188728,1632.4,1632.1,6.12696]
[1744718571650,14.314878,1632.4,1632.1,6.12696]
[1744718571950,6.12638,1632.3,1632.0,12.2547]
[1744718573084,8.188728,1632.4,1632.1,6.12702]
[1744718573262,14.314818,1632.4,1632.1,6.12702]
[1744718574864,8.188728,1632.4,1632.1,12.25398]
[1744718575060,8.188728,1632.4,1632.1,6.12696]
[1744718575221,14.314888,1632.4,1632.1,6.12696]
[1744718575587,14.314938,1632.4,1632.1,6.12696]
[1744718575743,8.188728,1632.4,1632.1,6.12696]
[1744718576356,8.188728,1632.4,1632.1,6.88886]
[1744718576653,14.314828,1632.4,1632.1,6.88886]
[1744718576811,6.12635,1632.3,1632.1,0.7619]
[1744718578030,12.25303,1632.3,1632.0,6.12733]
[1744718578266,13.6846018,1632.3,1632.0,6.12733]
[1744718578464,13.6846018,1632.3,1632.0,12.25467]
[1744718578465,7.5579218,1632.3,1632.0,12.25467]
[1744718578669,7.5579218,1632.3,1632.0,6.12733]
[1744718578953,13.6844218,1632.3,1632.0,6.12733]
[1744718580398,7.5579218,1632.3,1632.0,12.25467]
[1744718580550,6.12635,1632.3,1632.0,12.25467]
[1744718580889,6.12635,1632.3,1632.0,6.12733]
[1744718581191,6.12635,1632.3,1632.0,12.25466]
[1744718582796,2.062688,1632.4,1632.0,6.12745]
[1744718583017,0.3198061,1632.8,1632.4,6.12557]
[1744718583297,0.3198061,1632.8,1632.7,6.12482]
[1744718583595,5.353,1632.9,1632.7,6.12482]
[1744718583596,6.88641,1633.0,1632.7,6.95412]
[1744718583757,13.01028,1633.0,1632.7,6.95412]
[1744718584567,0.8196,1633.1,1632.7,0.8293]
[1744718584899,17.59927,1633.2,1632.8,6.12433]
[1744718585197,6.12336,1633.1,1632.8,6.819693]
[1744718585854,6.12336,1633.1,1632.8,0.695363]
[1744718586054,6.12374,1633.0,1632.7,6.95402]
[1744718586258,5.353,1633.2,1632.9,6.12386]
[1744718586672,5.353,1633.2,1632.9,12.24778]
[1744718587060,11.47598,1633.2,1632.9,12.24782]
[1744718587297,5.353,1633.2,1633.0,6.12368]
[1744718587489,5.353,1633.2,1633.0,12.24736]
[1744718587802,5.353,1633.2,1633.0,1.224754]
[1744718588302,5.353,1633.2,1633.0,7.348444]
[1744718588500,5.353,1633.2,1633.1,6.12332]
[1744718588713,12.29469,1633.4,1633.1,6.12332]
[1744718589003,0.05,1633.4,1633.2,6.735132]
[1744718589302,0.05,1633.4,1633.3,6.12257]
[1744718589789,0.05,1633.4,1633.2,12.857912]
[1744718589965,0.05,1633.4,1633.3,0.7622]
[1744718590166,0.05,1633.4,1633.3,6.88477]
[1744718590366,0.05,1633.4,1633.3,8.2467582]
[1744718590804,0.05,1633.4,1633.3,2.1241882]
[1744718590963,0.05,1633.4,1633.3,8.2467582]
[1744718591803,0.05,1633.4,1633.3,8.30797201]
[1744718592187,0.05,1633.4,1633.3,8.2467582]
[1744718594412,0.05,1633.4,1633.3,8.7967582]
[1744718594616,1e-05,1633.4,1633.3,23.2057582]
[1744718595822,1e-05,1633.4,1633.3,23.10750071]
[1744718595981,1e-05,1633.4,1633.3,17.3067582]
[1744718597924,1e-05,1633.4,1633.3,17.8567582]
[1744718599127,1e-05,1633.4,1633.3,18.32654103]
[1744718601117,1e-05,1633.4,1633.3,17.77654103]
[1744718602024,1e-05,1633.4,1633.3,17.3067582]
[1744718602187,1e-05,1633.4,1633.3,12.18257]
[1744718602392,1e-05,1633.4,1633.3,6.06]
[1744718602602,1e-05,1633.4,1633.3,12.18257]
[1744718603910,1e-05,1633.4,1633.3,12.2437898]
[1744718604115,1e-05,1633.4,1633.3,12.95367]
[1744718604314,1e-05,1633.4,1633.3,18.91047223]
[1744718604825,1e-05,1633.4,1633.3,24.25747223]
[1744718606233,1e-05,1633.4,1633.3,23.48637223]
[1744718606432,1e-05,1633.4,1633.3,18.13937223]
[1744718606632,1e-05,1633.4,1633.3,9.01680223]
[1744718606791,6.9105,1633.4,1633.3,6.06]
[1744718606996,6.9105,1633.4,1633.1,6.12319]
[1744718607495,6.12259,1633.3,1633.0,6.12357]
[1744718607918,6.91061,1633.4,1633.0,6.12357]
[1744718608191,0.78831,1633.4,1633.1,6.1845371]
[1744718608397,6.91053,1633.4,1633.1,6.12331]
[1744718608597,6.1226,1633.3,1633.0,6.816717]
[1744718609042,0.78831,1633.4,1633.0,0.75433411]
[1744718609206,0.78831,1633.4,1633.2,6.12289]
[1744718609408,6.91054,1633.4,1633.1,6.12298]
[1744718609608,13.0331,1633.4,1633.0,12.940347]
[1744718609815,6.91054,1633.4,1633.1,12.2464]
[1744718610602,6.91054,1633.4,1633.1,6.1232]
[1744718610803,13.03293,1633.4,1633.1,6.1232]
[1744718611342,6.91054,1633.4,1633.1,6.1232]
[1744718611833,0.78831,1633.4,1633.2,6.12294]
[1744718612043,1e-05,1633.4,1633.3,6.12257]
[1744718614434,1e-05,1633.4,1633.3,9.12257]
[1744718616807,1e-05,1633.4,1633.3,9.18378294]
[1744718617214,1e-05,1633.4,1633.3,16.49597]
[1744718617415,1e-05,1633.4,1633.3,20.28046903]
[1744718620120,1e-05,1633.4,1633.3,20.73622473]
[1744718624266,0.392428,1633.9,1633.8,6.1207]
[1744718624686,0.392428,1633.9,1633.8,9.1207]
[1744718624892,0.7502,1634.1,1633.8,9.1207]
[1744718624893,1e-05,1634.4,1634.3,9.89252]
[1744718625191,0.77701,1634.4,1634.3,6.11882]
[1744718626244,1e-05,1634.4,1634.3,6.11882]
[1744718626443,1e-05,1634.4,1634.3,12.87532034]
[1744718626655,1e-05,1634.4,1634.3,15.38665637]
[1744718627449,1e-05,1634.4,1634.3,16.16295637]
[1744718627644,1e-05,1634.4,1634.3,16.71295637]
[1744718629189,1e-05,1634.4,1634.3,17.16049016]
[1744718629612,1e-05,1634.4,1634.3,23.22049016]
[1744718629781,0.005,1634.8,1634.7,14.22923034]
[1744718629782,1e-05,1634.8,1634.7,14.22923034]
[1744718630108,1e-05,1634.8,1634.7,21.05790637]
[1744718630402,1e-05,1634.8,1634.7,15.71390637]
[1744718630786,5.344,1635.5,1634.9,6.1164]
[1744718631099,6.11524,1635.3,1635.0,6.11607]
[1744718631397,6.11524,1635.3,1634.9,12.23297]
[1744718631603,0.611524,1635.2,1634.9,12.23288]
[1744718631814,3.5739,1635.5,1634.9,12.23288]
[1744718631976,6.11519,1635.3,1634.8,6.11692]
[1744718632183,6.11518,1635.3,1634.9,6.11638]
[1744718632381,6.11552,1635.2,1634.9,6.11638]
[1744718632703,6.11518,1635.3,1634.9,12.2328]
[1744718632862,0.611518,1635.2,1634.9,12.23283]
[1744718633064,0.611518,1635.2,1634.9,6.11638]
[1744718633266,0.611518,1635.2,1635.0,6.11606]
[1744718633478,3.5739,1635.5,1634.8,6.1168]
[1744718633713,3.5739,1635.5,1635.0,6.11613]
[1744718633714,0.8108,1635.2,1635.0,6.11613]
[1744718634015,0.8108,1635.2,1634.9,6.11643]
[1744718634171,9.09950034,1635.6,1635.0,6.11598]
[1744718634372,6.11481,1635.4,1635.1,6.11578]
[1744718634810,0.90995003,1635.5,1635.4,6.11471]
[1744718635007,5.343,1635.9,1635.1,3.06115394]
[1744718635304,6.11359,1635.7,1635.1,9.11552]
[1744718635468,6.11455,1635.5,1635.1,9.11552]
[1744718635664,6.11472,1635.4,1635.1,3.0]
[1744718635865,6.1152,1635.3,1634.9,9.87297034]
[1744718636104,0.61152,1635.2,1635.0,6.1161]
[1744718636316,6.11482,1635.4,1635.0,6.1161]
[1744718636510,6.11524,1635.3,1634.9,6.11655]
[1744718636810,6.11524,1635.3,1634.9,12.23293]
[1744718637107,0.7999,1635.2,1634.9,6.11646]
[1744718637517,0.7999,1635.2,1634.9,12.23292]
[1744718637668,1.491414,1635.2,1634.9,6.11646]
[1744718637869,1.491414,1635.2,1635.0,6.11611]
[1744718638104,0.7999,1635.2,1635.0,6.11606]
[1744718638510,0.7999,1635.2,1634.9,6.11647]
[1744718638717,0.7999,1635.2,1634.8,15.17694]
[1744718638882,0.7558,1635.1,1634.8,15.17694]
[1744718639214,0.7558,1635.1,1634.8,9.11681]
[1744718639529,1.442941,1635.1,1634.8,15.23361]
[1744718639808,1.442941,1635.1,1634.9,6.11657]
[1744718640109,1.442941,1635.1,1634.9,6.11648]
[1744718640300,0.7558,1635.1,1634.9,12.23292]